bitfinex/quotes_ETHUSD_20220123
["timestamp","ask_amount","ask_price","bid_price","bid_amount"]
[1642934777560,0.774,2531.4,2530.5,1.21116521]
[1642934778061,1.074,2531.4,2530.5,1.21116521]
[1642934778462,1.074,2531.4,2530.1,0.15089486]
[1642934779465,1.48828445,2531.2,2530.1,1.69389878]
[1642934779665,0.474,2531.1,2530.1,1.69389878]
[1642934779864,0.474,2531.1,2530.2,2.78741182]
[1642934780508,0.474,2531.1,2530.6,1.53188052]
[1642934780709,0.474,2531.1,2530.5,1.33491705]
[1642934780710,0.774,2531.1,2530.5,1.33491705]
[1642934780909,0.774,2531.1,2530.1,0.15089486]
[1642934781109,1.074,2531.1,2530.1,0.15089486]
[1642934781310,1.074,2531.1,2530.1,0.13819997]
[1642934782009,1.074,2531.1,2530.2,1.16641192]
[1642934782210,1.074,2531.1,2530.3,1.30149112]
[1642934782610,1.074,2531.1,2530.2,1.16641192]
[1642934783010,1.074,2531.1,2530.1,0.13819997]
[1642934783414,1.074,2531.1,2529.5,3.6176]
[1642934783415,0.1086075,2531.0,2529.5,3.6176]
[1642934783614,0.474,2530.9,2529.1,5.96729482]
[1642934783812,4.167,2530.8,2529.1,2.46729482]
[1642934784079,1.12822396,2529.9,2529.1,2.46729482]
[1642934784286,1.12822396,2529.9,2528.8,0.01234226]
[1642934784287,0.474,2529.8,2528.8,0.01234226]
[1642934784481,0.474,2529.8,2528.6,0.00170816]
[1642934784680,0.474,2529.8,2528.7,1.28672883]
[1642934784880,0.474,2529.8,2528.5,5.96558666]
[1642934785081,0.474,2529.8,2528.6,23.11]
[1642934785284,0.474,2529.8,2528.7,25.57558666]
[1642934785688,0.474,2529.8,2528.8,2.85736664]
[1642934786386,0.474,2529.8,2528.9,1.12410841]
[1642934786583,0.474,2529.8,2529.0,2.73871709]
[1642934787086,0.474,2529.8,2528.9,1.12410841]
[1642934788304,0.474,2529.8,2528.7,23.11]
[1642934788506,0.474,2529.8,2528.4,0.01261603]
[1642934788706,0.474,2529.8,2528.4,2.82863398]
[1642934788907,0.474,2529.8,2528.5,3.36185025]
[1642934789104,0.474,2529.8,2528.4,2.82863398]
[1642934789314,0.474,2529.8,2528.5,24.54856111]
[1642934789315,1.38630581,2529.5,2528.5,24.54856111]
[1642934789609,0.474,2529.5,2528.5,32.02856111]
[1642934789811,0.774,2529.5,2528.4,0.01261603]
[1642934790010,1.074,2529.5,2528.4,0.01261603]
[1642934790411,1.074,2529.5,2528.5,3.36186543]
[1642934790412,0.474,2529.5,2528.5,3.36186543]
[1642934790610,0.474,2529.9,2528.6,26.88409078]
[1642934790810,0.474,2529.9,2529.7,1.28006323]
[1642934791010,1.23440864,2530.6,2530.3,1.1191538]
[1642934791212,0.584793,2530.9,2530.3,1.1191538]
[1642934791468,0.474,2530.8,2530.3,1.1191538]
[1642934791661,0.01292739,2530.6,2530.3,1.1191538]
[1642934791864,0.474,2530.5,2530.3,1.1191538]
[1642934792261,6.03685181,2530.4,2529.2,0.00170816]
[1642934792462,6.03685181,2530.4,2528.7,0.01297434]
[1642934792463,0.474,2530.3,2528.7,0.01297434]
[1642934792664,1.45990432,2530.1,2528.9,1.14449822]
[1642934792863,0.474,2530.0,2528.7,0.01297434]
[1642934793067,1.074,2530.0,2528.7,0.01297434]
[1642934793363,1.074,2530.0,2528.4,1.42262007]
[1642934793364,3.35165645,2529.9,2528.4,1.42262007]
[1642934793565,0.474,2529.8,2528.4,1.42262007]
[1642934793763,2.62337467,2529.7,2528.8,1.41877773]
[1642934793968,0.474,2529.6,2528.6,1.42546597]
[1642934794162,0.474,2529.6,2528.3,5.29245357]
[1642934794366,3.11353089,2529.6,2528.3,5.29245357]
[1642934794564,3.2003827,2529.6,2528.3,5.27969997]
[1642934794762,3.2003827,2529.6,2528.3,4.08929997]
[1642934794964,3.11353089,2529.6,2528.3,4.08929997]
[1642934795208,3.11353089,2529.6,2528.3,0.13819997]
[1642934795209,1.39747921,2529.2,2528.3,0.13819997]
[1642934795411,3.04527325,2529.1,2527.8,23.12218184]
[1642934795615,3.64527325,2529.1,2527.8,23.12218184]
[1642934796012,1.074,2529.1,2527.9,1.39836174]
[1642934796211,1.074,2529.1,2528.3,1.45300853]
[1642934796212,5.1173,2529.1,2528.3,1.45300853]
[1642934796412,5.1173,2529.1,2528.1,1.2674254]
[1642934797016,1.074,2529.1,2528.1,1.2674254]
[1642934798115,1.074,2529.1,2527.8,23.12218184]
[1642934798317,1.074,2529.1,2528.0,23.11]
[1642934798517,1.074,2529.1,2528.7,1.25085369]
[1642934798718,4.93066554,2529.9,2528.7,1.25085369]
[1642934798719,0.474,2529.9,2529.1,3.222]
[1642934798974,0.474,2530.2,2530.0,1.1751652]
[1642934799160,0.474,2530.2,2529.2,2.94301618]
[1642934799161,0.474,2530.5,2529.4,23.11]
[1642934799360,0.474,2530.5,2530.0,1.47117204]
[1642934799759,0.474,2530.5,2529.7,23.12239857]
[1642934800164,0.474,2530.5,2530.1,1.3458132]
[1642934800363,0.474,2530.5,2529.7,23.12239857]
[1642934800767,0.474,2530.5,2529.6,1.61526142]
[1642934801264,0.474,2530.5,2529.9,1.18666589]
[1642934801465,0.474,2530.5,2529.2,2.79358977]
[1642934801665,0.474,2530.5,2529.1,3.222]
[1642934801866,0.01268174,2530.2,2529.1,3.222]
[1642934802069,0.474,2530.1,2529.1,3.222]
[1642934802465,0.474,2530.1,2529.2,2.51193168]
[1642934802710,0.474,2530.1,2529.1,3.222]
[1642934802711,0.774,2530.1,2529.1,3.222]
[1642934802907,0.3,2530.0,2529.1,3.222]
[1642934803108,0.774,2530.0,2529.1,3.222]
[1642934803712,1.33643635,2529.9,2529.1,3.222]
[1642934804218,0.01264234,2529.7,2529.1,3.222]
[1642934804416,0.474,2529.6,2529.1,3.222]
[1642934804822,0.01215216,2529.2,2528.1,2.453594]
[1642934805017,0.01215216,2529.2,2528.2,3.36320416]
[1642934805018,0.3,2529.0,2528.2,3.36320416]
[1642934805217,0.474,2528.9,2528.4,1.28701553]
[1642934805518,0.774,2528.9,2528.4,1.28701553]
[1642934805717,0.774,2528.9,2528.0,2.45188584]
[1642934805917,0.774,2528.9,2527.9,1.320205]
[1642934806119,1.41667249,2529.4,2529.0,1.49038361]
[1642934809365,1.41667249,2529.4,2529.0,0.56573545]
[1642934810222,0.474,2529.3,2529.0,0.56573545]
[1642934811229,0.474,2529.3,2527.9,0.00170816]
[1642934811434,0.56085181,2529.3,2527.8,3.36374503]
[1642934811632,1.11883552,2528.5,2527.4,5.019]
[1642934811831,1.11883552,2528.5,2527.5,3.36422039]
[1642934811832,0.474,2528.4,2527.5,3.36422039]
[1642934812031,0.57382041,2528.4,2527.5,3.36422039]
[1642934812234,6.00885181,2528.3,2526.7,1.48649731]
[1642934812437,0.474,2528.2,2526.8,4.85107977]
[1642934812632,0.56085181,2528.2,2526.9,3.36458246]
[1642934812832,0.56085181,2528.2,2527.0,3.36458246]
[1642934813030,0.56085181,2528.2,2526.8,1.48649731]
[1642934813031,0.56085181,2528.2,2527.1,3.36458246]
[1642934813235,0.08685181,2528.1,2527.1,3.36458246]
[1642934813432,0.08685181,2528.1,2527.3,1.18970133]
[1642934813433,0.474,2528.0,2527.3,1.18970133]
[1642934813633,10.2176,2528.3,2527.3,1.18970133]
[1642934813634,7.10295342,2528.3,2527.3,1.18970133]
[1642934813833,0.474,2528.2,2527.0,0.01203736]
[1642934814055,2.00739187,2528.2,2527.0,0.01203736]
[1642934814457,0.474,2528.2,2527.0,0.01203736]
[1642934814857,0.474,2528.2,2527.1,1.21604397]
[1642934815061,0.474,2528.2,2527.0,0.01203736]
[1642934815259,0.474,2528.2,2526.5,3.3362641]
[1642934815462,0.474,2528.2,2526.6,3.36494821]
[1642934815661,0.474,2528.2,2526.5,6.42979964]
[1642934815860,0.474,2528.2,2526.7,2.70947605]
[1642934816261,0.474,2528.2,2526.5,0.01207645]
[1642934816262,1.77431052,2528.2,2526.9,1.45286814]
[1642934817163,1.77431052,2528.2,2526.8,1.15663932]
[1642934817369,1.77431052,2528.2,2526.5,26.57587747]
[1642934817569,1.77431052,2528.2,2526.6,3.36495504]
[1642934818013,2.77431052,2528.2,2526.6,3.36495504]
[1642934818213,1.19979553,2527.8,2526.6,4.86544546]
[1642934818416,0.474,2527.7,2526.9,1.43370944]
[1642934818818,0.474,2527.7,2526.6,1.50049042]
[1642934819219,0.474,2527.7,2526.7,3.36498907]
[1642934819518,0.474,2527.7,2526.5,2.75463071]
[1642934819718,0.474,2527.7,2526.5,0.01207645]
[1642934819919,0.474,2527.7,2526.7,1.23826937]
[1642934820620,1.79437829,2527.7,2526.7,1.23826937]
[1642934820821,0.08685181,2527.6,2526.5,1.44525128]
[1642934821222,1.6769,2527.7,2526.5,1.44525128]
[1642934821471,1.6769,2527.7,2526.6,6.06832079]
[1642934821666,1.6769,2527.7,2526.6,2.7032769]
[1642934821865,1.6769,2527.7,2526.5,1.44525128]
[1642934822068,0.474,2527.7,2526.8,1.18530425]
[1642934822266,0.474,2527.7,2526.5,1.44525128]
[1642934822466,0.474,2527.7,2526.5,0.01207645]
[1642934822670,0.774,2527.7,2526.1,3.9903]
[1642934822867,0.774,2527.7,2526.2,3.36530965]
[1642934823267,0.774,2527.7,2526.2,6.11572672]
[1642934823467,1.14804827,2527.5,2526.4,1.24555896]
[1642934823667,0.474,2527.4,2526.8,1.52712964]
[1642934824070,0.474,2527.4,2526.4,2.72858935]
[1642934824274,0.474,2527.4,2526.3,0.01290907]
[1642934824472,0.474,2527.4,2526.2,1.19854226]
[1642934824676,0.474,2527.4,2526.3,6.06886388]
[1642934824873,0.474,2527.4,2526.4,3.36523563]
[1642934825073,0.474,2527.4,2526.8,1.35016015]
[1642934825320,0.474,2527.4,2526.5,2.7328765]
[1642934825717,0.474,2527.4,2526.6,2.24466295]
[1642934826316,0.774,2527.4,2526.6,3.37898408]
[1642934826616,0.774,2527.4,2526.6,2.24466295]
[1642934827015,0.774,2527.4,2526.4,2.24466295]
[1642934827420,0.774,2527.4,2526.7,1.49867828]
[1642934827617,0.774,2527.4,2526.4,2.24466295]
[1642934828220,0.774,2527.4,2526.2,2.24466295]
[1642934828521,0.774,2527.4,2526.3,3.36528485]
[1642934828522,2.23852387,2527.4,2526.3,3.36528485]
[1642934828725,0.774,2527.4,2526.6,1.50025803]
[1642934828977,0.474,2527.4,2527.0,1.29284103]
[1642934829270,0.68073603,2529.0,2527.1,2.42824124]
[1642934829470,0.68073603,2529.0,2528.8,1.515843]
[1642934829669,0.20673603,2529.0,2527.9,0.0124833]
[1642934829867,0.20673603,2529.0,2528.2,1.54908564]
[1642934830269,4.3634,2529.2,2527.7,0.01275269]
[1642934830673,2.63491283,2529.1,2527.6,0.00716629]
[1642934830870,2.63491283,2529.1,2527.5,1.2393]
[1642934831072,0.474,2529.0,2527.5,1.2393]
[1642934831370,9.21827859,2529.0,2527.5,1.2393]
[1642934831571,2.59703628,2528.9,2527.5,1.2393]
[1642934832369,2.66490145,2528.9,2527.6,1.25203016]
[1642934832575,2.59014237,2528.9,2527.6,1.25203016]
[1642934832815,1.73827859,2529.0,2528.1,1.41534011]
[1642934833016,1.73827859,2529.0,2527.5,1.2393]
[1642934833017,1.0,2528.8,2527.5,1.2393]
[1642934833221,0.474,2529.0,2527.6,23.11]
[1642934833420,6.90317534,2529.2,2527.6,23.11]
[1642934833822,4.3634,2529.2,2527.6,23.11]
[1642934834219,6.85999293,2529.2,2527.5,1.2393]
[1642934834421,0.474,2529.1,2527.5,24.3493]
[1642934834622,2.96418616,2529.1,2527.5,24.3493]
[1642934835321,2.96418616,2529.1,2528.1,1.19365801]
[1642934835322,1.0,2529.0,2528.1,1.19365801]
[1642934835521,1.474,2529.0,2527.5,24.3493]
[1642934836123,0.474,2529.0,2527.5,24.3493]
[1642934836566,0.474,2529.0,2528.7,1.40309913]
[1642934836771,0.20667596,2529.3,2528.7,1.40309913]
[1642934836966,0.61219997,2529.6,2528.2,30.765]
[1642934837366,10.60346722,2529.6,2528.2,30.765]
[1642934837570,10.60346722,2529.6,2528.5,1.48071368]
[1642934837571,3.77435637,2529.6,2528.5,1.48071368]
[1642934837967,2.63120505,2529.6,2529.0,1.41775002]
[1642934838169,2.63120505,2529.6,2528.2,3.8832]
[1642934838373,2.63120505,2529.6,2527.8,39.22405643]
[1642934838374,0.15091488,2529.5,2527.9,1.1341]
[1642934838571,1.15091488,2529.5,2527.9,1.1341]
[1642934838770,0.01210866,2528.8,2527.4,0.00170816]
[1642934839168,0.01210866,2528.8,2527.0,14.5307]
[1642934839169,1.27442235,2528.5,2527.2,1.45323903]
[1642934839373,1.57442235,2528.5,2527.2,1.45323903]
[1642934839570,1.57442235,2528.5,2527.0,7.5307]
[1642934839571,2.85624581,2528.4,2527.0,7.5307]
[1642934840070,1.08685181,2528.3,2526.7,1.2362]
[1642934840314,3.52667278,2528.2,2526.6,0.01204118]
[1642934840515,1.3579449,2527.6,2526.6,0.01204118]
[1642934840716,1.0,2528.1,2526.8,1.35956293]
[1642934840919,1.0,2528.1,2526.9,23.11]
[1642934841115,1.0,2528.3,2526.9,23.11]
[1642934841516,2.78170468,2528.4,2526.9,23.11]
[1642934841817,1.37824189,2528.1,2526.9,24.61900319]
[1642934842115,2.55585723,2528.2,2527.0,2.24455337]
[1642934842515,1.0,2528.1,2527.0,2.24455337]
[1642934843119,1.0,2528.3,2527.4,1.56143845]
[1642934843319,2.47685919,2528.4,2527.4,1.56143845]
[1642934843519,4.96719362,2528.8,2526.9,1.2444]
[1642934843520,2.85589541,2528.7,2526.9,1.2444]
[1642934843971,2.85589541,2528.7,2526.7,23.11]
[1642934844566,1.28462464,2528.3,2527.0,2.60600243]
[1642934844767,1.28462464,2528.3,2526.6,1.24434118]
[1642934844768,2.64069831,2528.2,2526.8,25.35446708]
[1642934844965,2.51676539,2528.2,2526.8,25.35446708]
[1642934845165,0.68685181,2528.7,2526.8,25.35446708]
[1642934845166,2.8650866,2528.5,2526.8,25.35446708]
[1642934845366,2.83669175,2528.7,2526.8,25.35446708]
[1642934845766,2.83669175,2528.7,2526.9,1.1844]
[1642934846070,2.83669175,2528.7,2526.9,3.42886708]
[1642934846071,2.92354356,2528.7,2526.9,3.42886708]
[1642934846267,2.83669175,2528.7,2527.4,1.39709374]
[1642934846665,2.83669175,2528.7,2526.9,26.53886708]
[1642934846868,2.83669175,2528.7,2526.9,3.42886708]
[1642934847266,2.83669175,2528.7,2527.0,2.24446708]
[1642934847469,2.92354356,2528.7,2527.0,2.24446708]
[1642934847710,1.2657006,2528.2,2527.0,3.36742078]
[1642934847909,0.3,2528.2,2527.0,3.36742078]
[1642934848111,0.3,2528.1,2527.0,3.36742078]
[1642934848513,3.00281876,2528.5,2527.0,1.1229537]
[1642934848514,1.0,2528.4,2527.0,1.1229537]
[1642934848722,2.99917,2528.3,2527.0,1.1229537]
[1642934848915,3.29917,2528.3,2527.0,2.32787178]
[1642934849116,1.0,2528.2,2527.0,2.32787178]
[1642934849716,1.796635,2528.3,2527.0,2.32787178]
[1642934850115,2.55260523,2528.2,2527.0,2.32787178]
[1642934850319,2.77548025,2528.7,2527.8,1.12722099]
[1642934850520,0.20672843,2528.7,2527.2,4.55031545]
[1642934850719,4.95457266,2528.8,2527.2,4.55031545]
[1642934850921,4.95457266,2528.8,2527.3,3.7572]
[1642934851325,6.1871091,2528.8,2527.5,1.41619419]
[1642934851598,6.27396091,2528.8,2527.6,1.38685379]
[1642934851797,6.27396091,2528.8,2527.5,1.41619419]
[1642934851995,3.0159704,2528.7,2527.3,3.7572]
[1642934852496,0.08685181,2528.6,2527.3,3.75630089]
[1642934852702,0.08685181,2528.6,2527.2,1.2499]
[1642934852900,0.08685181,2528.6,2526.6,1.23400816]
[1642934852901,1.25117281,2528.1,2526.9,1.50870372]
[1642934853097,1.85117281,2528.1,2526.9,1.50870372]
[1642934853296,1.93802462,2528.1,2526.6,2.386]
[1642934853596,1.93802462,2528.1,2526.7,23.11]
[1642934853796,1.93802462,2528.1,2526.9,1.26345343]
[1642934853999,1.93802462,2528.1,2526.6,2.386]
[1642934854199,1.11086261,2527.7,2526.6,2.386]
[1642934854596,1.71086261,2527.7,2526.6,2.386]
[1642934854799,0.6,2527.7,2526.6,2.386]
[1642934854995,0.3,2527.7,2527.1,1.37547242]
[1642934855213,0.3,2527.6,2527.1,1.37547242]
[1642934855417,3.23469371,2528.5,2527.1,1.37547242]
[1642934855618,3.23469371,2528.5,2527.9,1.35483811]
[1642934855818,5.02484436,2528.7,2527.9,1.35483811]
[1642934856017,5.02484436,2528.7,2527.5,1.11258079]
[1642934856018,2.66637611,2528.7,2527.5,1.11258079]
[1642934856222,2.66637611,2528.7,2527.5,24.22258079]
[1642934856223,0.08685181,2528.7,2527.5,24.22258079]
[1642934856419,4.95457266,2528.8,2527.5,24.22258079]
[1642934856420,4.3677,2528.8,2527.5,24.22258079]
[1642934856628,4.3677,2528.8,2527.5,1.12491655]
[1642934856819,2.69262019,2528.7,2527.5,1.12491655]
[1642934857223,2.69262019,2528.7,2527.5,1.11258079]
[1642934857520,2.69262019,2528.7,2527.0,1.1743]
[1642934858122,2.99262019,2528.7,2527.3,1.22579793]
[1642934858322,1.30021634,2528.2,2527.3,1.22579793]
[1642934858523,2.95162816,2528.1,2527.3,1.22579793]
[1642934858720,0.3,2528.1,2527.3,1.22579793]
[1642934858959,1.0,2528.0,2527.3,1.22579793]
[1642934859165,2.57317378,2527.9,2527.3,1.22579793]
[1642934859560,1.3,2527.8,2527.3,1.22579793]
[1642934859762,0.3,2527.8,2527.3,1.22579793]
[1642934859961,2.544786,2527.8,2527.0,1.1743]
[1642934860162,1.0,2527.7,2527.0,1.1743]
[1642934860367,0.01274557,2528.4,2527.0,1.1743]
[1642934860568,3.58509201,2528.7,2527.0,1.18723676]
[1642934860774,0.08685181,2528.4,2527.0,1.18723676]
[1642934860968,0.08685181,2528.4,2527.7,1.23550386]
[1642934861170,1.20542826,2528.0,2527.0,1.18723676]
[1642934861372,2.55300931,2527.9,2527.0,1.1743]
[1642934861574,2.63986112,2527.9,2526.7,0.00170816]
[1642934861773,2.63986112,2527.9,2526.6,1.2323]
[1642934861971,1.08685181,2527.8,2526.6,1.2323]
[1642934862271,2.65994784,2527.7,2527.1,1.24462926]
[1642934862470,0.38685181,2527.7,2527.1,1.24462926]
[1642934862715,3.22247527,2527.7,2527.1,1.24462926]
[1642934862920,3.20813427,2527.7,2527.1,1.24462926]
[1642934863119,1.0,2527.6,2526.6,2.4093]
[1642934863620,0.6,2527.7,2526.6,2.4093]
[1642934863821,6.78400336,2527.7,2526.6,2.4093]
[1642934864122,1.3,2527.6,2526.9,1.48899827]
[1642934864425,2.7046438,2527.6,2526.9,1.48899827]
[1642934864621,2.76969772,2527.5,2526.6,2.4093]
[1642934865120,1.0,2527.4,2526.6,2.4093]
[1642934865724,1.3,2527.5,2527.2,1.30837315]
[1642934865922,0.3,2527.5,2527.2,1.30837315]
[1642934866121,0.3,2527.5,2526.6,6.307]
[1642934866322,0.3,2527.5,2526.6,2.4093]
[1642934866323,2.42824124,2527.4,2526.6,2.4093]
[1642934866571,1.38685181,2527.4,2526.1,23.11]
[1642934866974,0.38685181,2527.4,2526.1,23.11]
[1642934867169,0.08685181,2527.4,2526.1,23.11]
[1642934867372,1.45236183,2527.3,2526.1,1.36738149]
[1642934867572,2.51509305,2527.4,2526.1,1.36738149]
[1642934867870,2.51509305,2527.4,2526.0,23.11]
[1642934868070,1.3,2527.3,2526.0,23.11]
[1642934868270,1.6,2527.3,2526.0,23.11]
[1642934868877,0.6,2527.3,2526.0,23.11]
[1642934869073,1.74694846,2527.5,2526.2,1.08907682]
[1642934869273,0.3,2527.3,2526.2,1.08907682]
[1642934869477,2.77078734,2527.4,2526.2,1.08907682]
[1642934869676,2.45029706,2527.2,2526.6,1.49153962]
[1642934869874,0.6,2527.2,2526.6,1.49153962]
[1642934870075,1.3,2527.2,2526.6,1.49153962]
[1642934870323,1.3,2527.2,2526.2,1.08907682]
[1642934870324,0.3,2527.3,2526.2,1.08907682]
[1642934870522,3.13183331,2527.2,2526.1,1.1314]
[1642934871017,1.0,2527.1,2526.1,1.1314]
[1642934871417,0.6,2527.2,2526.6,1.4786911]
[1642934871618,0.3,2527.2,2526.6,1.4786911]
[1642934871823,1.0,2527.5,2526.6,1.4786911]
[1642934871824,1.6,2527.5,2526.6,1.4786911]
[1642934872217,2.44418212,2527.4,2526.6,1.4786911]
[1642934872418,2.44418212,2527.4,2526.1,1.1314]
[1642934872821,1.6,2527.5,2526.2,23.11]
[1642934873422,0.6,2527.5,2526.9,1.22259828]
[1642934873820,0.6,2527.5,2526.5,3.7291]
[1642934874063,0.6,2527.5,2526.5,4.85827432]
[1642934875167,0.6,2527.5,2526.7,1.14244729]
[1642934875469,0.6,2527.5,2526.5,3.7291]
[1642934876667,0.6,2527.5,2526.8,1.47537973]
[1642934876867,0.55785464,2527.5,2526.8,1.47537973]
[1642934877068,0.64470645,2527.5,2526.5,3.7291]
[1642934878115,0.55785464,2527.5,2526.5,3.7291]
[1642934878315,0.55785464,2527.5,2527.0,1.36684339]
[1642934878919,0.51570928,2527.5,2526.5,5.09404859]
[1642934879319,0.51570928,2527.5,2526.5,3.7291]
[1642934880024,0.51570928,2527.5,2526.9,1.25613902]
[1642934880223,0.51570928,2527.5,2526.5,3.7291]
[1642934880522,1.82848575,2527.5,2526.5,3.7291]
[1642934881320,1.82848575,2527.5,2526.6,1.33612257]
[1642934881770,0.51570928,2527.5,2526.6,1.33612257]
[1642934882972,0.51570928,2527.5,2526.7,1.20658364]
[1642934883177,0.51570928,2527.5,2526.6,1.33612257]
[1642934884179,0.51570928,2527.5,2526.6,2.43123475]
[1642934885324,0.51570928,2527.5,2526.6,1.33612257]
[1642934885927,1.30640928,2527.5,2526.6,1.33612257]
[1642934887525,0.51570928,2527.5,2526.6,1.33612257]
[1642934888325,4.53531059,2527.7,2527.4,1.49730103]
[1642934888326,4.32859997,2527.7,2527.4,1.49730103]
[1642934888531,4.4491,2528.1,2527.4,1.49730103]
[1642934888727,0.59181089,2528.3,2527.4,1.49730103]
[1642934888986,3.6684,2528.6,2527.4,1.49730103]
[1642934889183,3.6684,2528.6,2528.2,1.15187621]
[1642934889384,4.3053,2528.7,2528.2,1.15187621]
[1642934889783,4.39215181,2528.7,2528.2,1.15187621]
[1642934889983,0.08685181,2528.7,2528.2,1.15187621]
[1642934890184,0.20667212,2528.9,2528.2,1.15187621]
[1642934890392,0.6128111,2529.0,2528.2,1.15187621]
[1642934890589,0.6128111,2529.0,2527.5,24.3104]
[1642934890788,0.08685181,2528.9,2527.5,24.3104]
[1642934891586,0.08685181,2528.9,2527.6,2.60919723]
[1642934891788,0.08685181,2528.9,2528.2,1.17680548]
[1642934892190,11.8181,2529.1,2528.3,2.53638979]
[1642934892390,0.98999,2529.7,2528.2,24.28680548]
[1642934892391,3.10118086,2529.7,2528.2,24.28680548]
[1642934892761,8.1899,2530.3,2529.6,1.18029049]
[1642934892949,4.35182679,2530.3,2529.6,1.305902]
[1642934893349,0.05202679,2530.3,2529.6,1.305902]
[1642934893549,0.04,2530.3,2529.6,1.305902]
[1642934893946,0.04,2530.3,2529.7,1.1960549]
[1642934894146,0.04,2530.3,2529.8,0.00875089]
[1642934894348,0.04,2530.3,2529.7,1.1960549]
[1642934894549,0.04,2530.3,2529.8,0.00729299]
[1642934894746,0.0001,2530.0,2529.8,2.59960458]
[1642934894947,0.0001,2530.0,2529.8,0.00729299]
[1642934895349,0.0001,2530.0,2529.7,1.1960549]
[1642934895950,0.0001,2530.0,2529.2,3.24310532]
[1642934896154,0.0001,2530.0,2529.1,2.2838]
[1642934896471,0.0001,2530.0,2529.1,5.7838]
[1642934896872,0.0001,2530.0,2529.1,2.2838]
[1642934897072,0.0001,2530.0,2529.4,1.56261725]
[1642934898082,0.0001,2530.0,2529.6,1.26101823]
[1642934898278,0.0001,2530.0,2529.4,1.56261725]
[1642934899479,0.0001,2530.0,2529.1,2.2838]
[1642934900528,0.0001,2530.0,2529.6,1.20322758]
[1642934901130,0.3001,2530.0,2529.6,1.20322758]
[1642934901928,0.3001,2530.0,2529.1,2.2838]
[1642934902132,2.66114757,2529.9,2529.1,2.2838]
[1642934902330,0.3,2529.9,2529.1,2.2838]
[1642934902529,2.58057856,2529.9,2529.1,2.2838]
[1642934902731,2.88057856,2529.9,2529.1,2.2838]
[1642934902930,3.18057856,2529.9,2529.1,2.2838]
[1642934903131,3.18057856,2529.9,2529.5,1.5595119]
[1642934903337,3.13052858,2529.9,2529.5,1.5595119]
[1642934903532,3.13052858,2529.9,2529.1,2.2838]
[1642934903965,0.6,2529.9,2529.1,2.2838]
[1642934904264,0.6001,2530.0,2529.1,2.2838]
[1642934904464,2.48143752,2529.9,2529.7,1.11659661]
[1642934904664,2.42455051,2529.8,2529.7,1.11659661]
[1642934904864,0.3,2529.8,2529.1,2.2838]
[1642934905066,0.6001,2530.0,2529.0,1.35447678]
[1642934905269,0.3001,2530.0,2529.0,1.35447678]
[1642934905975,2.61540233,2529.9,2528.8,3.6697]
[1642934906170,3.21540233,2529.9,2528.7,3.7861]
[1642934906371,7.51650233,2529.9,2528.7,3.7861]
[1642934906971,1.3092607,2529.7,2529.1,1.1583354]
[1642934907171,2.63015608,2529.6,2529.1,1.1583354]
[1642934907373,2.93015608,2529.6,2529.1,1.1583354]
[1642934907571,2.93015608,2529.6,2528.6,1.1298]
[1642934908221,0.3,2529.6,2529.0,1.48849773]
[1642934908418,0.3,2529.7,2529.0,1.48849773]
[1642934908621,0.3,2529.7,2529.4,1.55766543]
[1642934908817,2.81599008,2529.9,2529.0,1.48849773]
[1642934909020,3.11599008,2529.9,2529.0,1.48849773]
[1642934909223,2.43703746,2529.9,2529.0,1.48849773]
[1642934909423,7.4801,2530.0,2529.0,1.48849773]
[1642934909622,2.45780435,2529.9,2529.0,1.48849773]
[1642934910028,2.45780435,2529.9,2529.1,1.33764054]
[1642934910424,3.05780435,2529.9,2529.1,1.33764054]
[1642934910625,3.05780435,2529.9,2528.6,5.0026]
[1642934911025,4.19275563,2529.9,2528.7,1.40785619]
[1642934911467,2.45780435,2529.9,2528.7,1.40785619]
[1642934911672,2.43371767,2529.9,2529.3,1.23201049]
[1642934911875,0.0001,2530.0,2529.3,1.23201049]
[1642934912476,0.0001,2530.0,2529.4,1.47029551]
[1642934912872,0.0001,2530.0,2529.3,1.23201049]
[1642934913073,0.0001,2530.0,2528.9,1.1964]
[1642934913274,7.4801,2530.0,2528.9,1.1964]
[1642934913878,7.4801,2530.0,2529.4,1.28680637]
[1642934914075,9.0801,2530.0,2529.9,1.17579334]
[1642934914276,7.4801,2530.0,2529.9,1.17579334]
[1642934915329,0.0001,2530.0,2528.9,24.3064]
[1642934915731,0.0001,2530.0,2528.9,1.1964]
[1642934916329,0.0001,2530.0,2529.0,1.15783464]
[1642934916532,0.0001,2530.0,2528.9,1.1964]
[1642934917531,0.0001,2530.0,2529.0,1.33417391]
[1642934917931,0.0001,2530.0,2529.8,1.26028851]
[1642934918136,0.0001,2530.0,2529.9,23.11]
[1642934918331,0.0001,2530.0,2529.8,1.26028851]
[1642934918732,0.0001,2530.0,2529.6,0.01230312]
[1642934919378,0.0001,2530.0,2529.5,2.39186711]
[1642934919577,0.0001,2530.0,2529.5,6.16796711]
[1642934919784,0.0001,2530.0,2529.5,4.9553]
[1642934922586,0.0001,2530.0,2529.8,1.34699292]
[1642934927479,0.0001,2530.0,2529.8,2.59519292]
[1642934928480,0.0001,2530.0,2529.8,25.70519292]
[1642934928981,0.0001,2530.0,2529.8,2.59519292]
[1642934929382,0.0001,2530.0,2529.8,2.54519292]
[1642934930426,0.0001,2530.0,2529.8,25.65519292]
[1642934930626,0.0001,2530.0,2529.8,2.54519292]
[1642934931528,0.0001,2530.0,2529.8,1.2482]
[1642934931727,0.0001,2530.0,2529.2,5.0362]
[1642934932029,0.0001,2530.0,2529.3,3.5]
[1642934932628,0.0001,2530.0,2529.7,1.46250303]
[1642934937083,0.0001,2530.0,2529.3,7.6928]
[1642934937737,0.08695181,2530.0,2529.2,6.2588]
[1642934937924,0.08695181,2530.0,2529.1,1.0]
[1642934938127,0.0001,2530.0,2529.1,1.0]
[1642934938325,1.39673251,2530.0,2529.1,1.0]
[1642934938524,1.69673251,2530.0,2529.1,1.0]
[1642934938726,0.3001,2530.0,2529.1,1.0]
[1642934939130,0.3001,2530.0,2529.7,1.10196358]
[1642934939131,0.0001,2530.0,2529.7,1.10196358]